Cogmind - Beta 13 @@@ ROGUE MODE // 2024.04.07 @ 16:44:47 Player: Gimcond Result: Destroyed by S-27 Virus with Autogun Performance ------------- Evolutions (4) 2000 Regions Visited (11) 2200 Robots Destroyed (76) 380 Value Destroyed (2612) 2612 Prototype IDs (5) 100 Alien Tech Used (0) 0 Bonus (2025) 2025 TOTAL SCORE: 9317 Bonus ------- High Alert Combat Kills 187 Follower Combat Kills 458 Entered Garrisons 200 Used RIF Installer 500 Entered DSFs 500 Aligned with FarCom 300 Friendly Fire -120 Cogmind --------- Core Integrity 0/850 Matter 252/300 Energy 99/100 System Corruption 9% Temperature Cool (2) Movement Flying (35) Location -6/Factory Parts ------- > --- POWER (2) -------- (None) > --- PROPULSION (5) --- Improved Cesium-ion Thruster > --- UTILITY (6) ------ (None) > --- WEAPON (2) ------- (None) > --- INVENTORY (5) ---- Hardened Heavy Armor Plating Drone Bay (2/2) AWS/Thermal Peak State ------------ > --- POWER ------------ Micro Nuclear Core Light Angular Momentum Engine > --- PROPULSION ------- Improved Titanium Leg Flexi-carbon Leg Flexi-carbon Leg Flexi-carbon Leg Flexi-carbon Leg > --- UTILITY ---------- Advanced Heat Sink Huge Storage Unit Core Analyzer Advanced ECM Suite Light Armor Plating Skeleton Box > --- WEAPON ----------- Guided Plasma Cannon Gauss Rifle > --- INVENTORY -------- Light Nuclear Core Light Nuclear Core Light Angular Momentum Engine Carbon-fiber Leg Carbon-fiber Leg Carbon-fiber Leg Carbon-fiber Leg Improved Titanium Leg Improved Titanium Leg Improved Heat Sink Advanced Heat Sink Large Storage Unit High-capacity Matter Pod Seismic Detector Kinecellerator Weapon Cycler Improved Utility Shielding Hacking Suite High-powered Tractor Beam Heavy Laser AWS/Thermal [Rating: 73] Favorites ----------- Power Light Nuclear Core Engine Reinforced Ion Engine Power Core Light Nuclear Core Propulsion Titanium Leg Treads Light Treads Leg Titanium Leg Flight Unit Improved Cesium-ion Thruster Utility Skeleton Box Device Skeleton Box Storage Large Storage Unit Processor Core Analyzer Protection Light Armor Plating Weapon Guided Plasma Cannon Energy Gun AWS/Thermal Energy Cannon Guided Plasma Cannon Ballistic Gun Assault Rifle Launcher Grenade Launcher Build | -11 -10 -9 -9 -9 -8 -8 -8 -8 -7 -7 -6 ------- Run | Yrd Mat Mat Min Exi Min Mat Sto Gar Fac DSF Fac Slots Evolved 8 | . . 2 . . . 2 . . 2 . 2 Power 1 | . . . . . . . . . 1 . . Propulsion 3 | . . 2 . . . 1 . . . . . Utility 4 | . . . . . . 1 . . 1 . 2 Weapon . | . . . . . . . . . . . . Parts Attached 85 | 7 2 17 1 4 3 2 1 13 5 6 24 Power 15 | . 1 1 . . 1 . 1 2 1 1 7 Engine 6 | . 1 1 . . . . . . . . 4 Core 9 | . . . . . 1 . 1 2 1 1 3 Reactor . | . . . . . . . . . . . . Propulsion 30 | 2 . 8 . . 2 1 . 4 1 5 7 Treads 6 | 2 . 4 . . . . . . . . . Leg 23 | . . 4 . . 2 1 . 4 1 5 6 Wheel . | . . . . . . . . . . . . Hover . | . . . . . . . . . . . . Flight 1 | . . . . . . . . . . . 1 Utility 23 | 3 . 2 . 2 . 1 . 4 3 . 8 Device 13 | 1 . . . 2 . 1 . 4 1 . 4 Storage 5 | 2 . 1 . . . . . . 1 . 1 Processor 1 | . . . . . . . . . . . 1 Hackware . | . . . . . . . . . . . . Protection 4 | . . 1 . . . . . . 1 . 2 Artifact . | . . . . . . . . . . . . Weapon 17 | 2 1 6 1 2 . . . 3 . . 2 Energy Gun 3 | . . 1 . 1 . . . . . . 1 Energy Cannon 5 | . . 2 . 1 . . . 2 . . . Ballistic Gun 7 | 2 . 3 . . . . . 1 . . 1 Ballistic Cannon . | . . . . . . . . . . . . Launcher 2 | . 1 . 1 . . . . . . . . Special Weapon . | . . . . . . . . . . . . Impact Weapon . | . . . . . . . . . . . . Slashing Weapon . | . . . . . . . . . . . . Piercing Weapon . | . . . . . . . . . . . . Special Melee Weapon . | . . . . . . . . . . . . Unidentified Prototypes 5 | . . 1 . 2 . . . 1 . . 1 Parts Lost 29 | . . 2 2 . . . . 3 . 2 20 Power 8 | . . . . . . . . 1 . 1 6 Propulsion 13 | . . 1 . . . . . 2 . 1 9 Utility 5 | . . . 1 . . . . . . . 4 Weapon 3 | . . 1 1 . . . . . . . 1 Highest Loss Streak 12 | . . 1 2 . . . . 2 . 1 12 To Critical Strikes 1 | . . . . . . . . 1 . . . Average Slot Usage (%) 86 | . 100 90 98 91 88 90 90 85 89 88 71 Engine 5 | . 14 11 11 11 9 . . . . . 2 Core 5 | . . . . . 1 9 9 9 12 14 7 Treads 6 | . 28 31 . . . . . . . . . Leg 29 | . . 4 44 44 44 45 45 40 38 34 24 Device 12 | . 14 5 . 11 11 18 18 16 17 23 14 Storage 9 | . 14 11 11 11 11 9 9 9 7 7 6 Protection 2 | . . 5 10 . . . . . 4 . 2 Energy Gun 4 | . . 4 11 11 11 9 9 . . . 2 Energy Cannon 4 | . . 10 . 3 . . . 6 7 7 1 Ballistic Gun 2 | . 15 3 . . . . . 3 . . 3 Launcher 1 | . 12 3 9 . . . . . . . . Naked Turns 86 | . . . . . . . . . . . 86 Heaviest Build 126 | 9 16 39 40 40 40 36 36 40 107 107 126 Greatest Support 100 | 40 40 80 51 51 68 68 68 81 79 100 100 Greatest Overweight (x) 26 | . . 1 . . . . . . 1 1 26 Average Overweight (x) . | . . . . . . . . . . 1 . Largest Inventory Capacity 25 | 8 8 15 15 15 15 15 15 15 25 25 25 Average Capacity 16 | 7 8 14 15 15 15 15 15 15 21 25 20 Most Carried 23 | 7 8 13 14 15 15 14 15 15 14 21 23 Average Carried 13 | 4 6 9 13 13 15 13 14 14 13 16 16 Final Capacity 25 | 8 8 15 15 15 15 15 15 15 25 25 5 Final Carried 20 | 6 8 13 14 15 15 14 14 15 14 20 5 Class Distribution -------------------- 53% | Mutant 37% | Scavenger-Mutant 8% | Commander-Mutant Dominant Class ---------------- Mutant | -10/Materials Mutant | -9/Materials Mutant | -9/Mines Mutant | -9/Exiles Mutant | -8/Mines Mutant | -8/Materials Commander-Mutant | -8/Storage Scavenger-Mutant | -8/Garrison Scavenger-Mutant | -7/Factory Scavenger-Mutant | -7/DSF Scavenger-Mutant | -6/Factory Resources | -11 -10 -9 -9 -9 -8 -8 -8 -8 -7 -7 -6 ----------- Run | Yrd Mat Mat Min Exi Min Mat Sto Gar Fac DSF Fac Matter Collected 1451 | 243 46 362 . 124 154 . 30 125 40 60 267 Remotely 30 | . . . . . . . . 30 . . . Salvage Created 2845 | 105 138 518 4 . 314 . 175 466 60 470 595 Parts 159 | 8 13 33 . . 13 . 13 32 5 28 14 Haulers Intercepted 1 | . . 1 . . . . . . . . . Recyclers Shooed 1 | . . . . . . . 1 . . . . Parts Field Recycled . | . . . . . . . . . . . . Retrieved Matter . | . . . . . . . . . . . . Parts Self-Destructed . | . . . . . . . . . . . . Prevented . | . . . . . . . . . . . . Kills | -11 -10 -9 -9 -9 -8 -8 -8 -8 -7 -7 -6 ------- Run | Yrd Mat Mat Min Exi Min Mat Sto Gar Fac DSF Fac Combat Hostiles Destroyed 75 | . 9 13 8 . 6 . 3 14 1 12 9 Guns 20 | . 3 3 . . 6 . 3 . . . 5 Cannons 36 | . . 7 . . . . . 14 1 12 2 AOE 16 | . 6 2 8 . . . . . . . . Classes Destroyed 14 | 3 3 3 1 . 1 . . 1 . 1 1 Worker 2 | 2 . . . . . . . . . . . Builder 3 | . 1 1 . . . . 1 . . . . Tunneler 1 | 1 . . . . . . . . . . . Hauler 1 | . . 1 . . . . . . . . . Recycler 1 | 1 . . . . . . . . . . . Operator 1 | . . . . . . . . . . . 1 Swarmer 22 | . 6 3 . . . . . 6 . 7 . Grunt 24 | . 3 8 . . 2 . 1 3 . . 7 Brawler 2 | . . 1 . . 1 . . . . . . Sentry 7 | . . 1 . . . . 2 2 1 . 1 Specialist 5 | . . . . . . . . . . 5 . Hunter 6 | . . . . . 3 . . 2 . . 1 Programmer 1 | . . . . . . . . 1 . . . Assembled 8 | . . . 8 . . . . . . . . Best Kill Streak 8 | 1 4 4 8 . 3 . 2 5 1 5 4 Combat Bots Only 8 | . 3 4 8 . 3 . 2 5 1 5 4 Max Kills in Single Turn 3 | 1 2 2 3 . 1 . 1 1 1 1 1 Gunslinging . | . . . . . . . . . . . . Exploded 3 | . 2 1 3 . . . . . . . . Melee . | . . . . . . . . . . . . Uniques/NPCs Destroyed . | . . . . . . . . . . . . Combat | -11 -10 -9 -9 -9 -8 -8 -8 -8 -7 -7 -6 -------- Run | Yrd Mat Mat Min Exi Min Mat Sto Gar Fac DSF Fac Hostile Shots Fired 680 | . 32 74 24 . 22 . 3 56 9 49 411 Missed 239 | . 8 23 4 . 6 . 2 15 4 18 159 Damage Taken 6232 | . 243 569 611 . 264 . 15 617 39 533 3341 Core 1173 | . 12 72 31 . . . . 52 5 145 856 Absorbed by Shields 49 | . . . . . . . . . . 49 . Core Remaining (%) 87 | 100 95 . . . 74 . . 90 . 78 . Volleys Fired 194 | 10 14 41 4 . . . . 27 2 17 79 Largest 2 | 2 2 2 2 . . . . 1 1 1 2 Hottest 120 | 40 50 116 89 . . . . 120 120 120 120 Shots Fired 307 | 20 21 79 8 . 35 1 14 27 2 17 83 Gun 183 | 20 14 31 4 . 35 1 14 . . . 64 Cannon 106 | . . 41 . . . . . 27 2 17 19 Launcher 18 | . 7 7 4 . . . . . . . . Special . | . . . . . . . . . . . . Kinetic 89 | 20 14 22 . . . . . . . . 33 Thermal 200 | . . 50 4 . 35 1 14 27 2 17 50 Explosive 18 | . 7 7 4 . . . . . . . . Electromagnetic . | . . . . . . . . . . . . Robot Hit Streak 58 | 4 8 6 3 . 17 . 3 28 30 47 58 Robot Miss Streak 3 | 1 3 3 3 . 2 1 3 . . . 3 Penetration Max . | . . . . . . . . . . . . Secondary Targets . | . . . . . . . . . . . . Autonomous 51 | . . . . . 35 1 14 1 . . . Shots Hit Robots 223 | 12 14 44 5 . 31 . 8 27 2 17 63 Core Hits 117 | 5 13 17 15 . 10 . 5 13 2 12 25 Critical Kills . | . . . . . . . . . . . . Critical Parts Destroyed 1 | . . 1 . . . . . . . . . Critical Strikes 4 | . . 1 . . . . . . . . 3 Burn 3 | . . . . . . . . . . . 3 Destroy 1 | . . 1 . . . . . . . . . Melee Attacks . | . . . . . . . . . . . . Impact . | . . . . . . . . . . . . Slashing . | . . . . . . . . . . . . Piercing . | . . . . . . . . . . . . Sneak Attacks . | . . . . . . . . . . . . Combat Hostiles . | . . . . . . . . . . . . Follow-up Attacks . | . . . . . . . . . . . . Damage Inflicted 6641 | 142 575 953 615 . 864 . 323 956 67 612 1534 Guns 2503 | 142 103 190 17 . 864 . 323 . . . 864 Cannons 2763 | . . 458 . . . . . 956 67 612 670 Explosions 1372 | . 472 302 598 . . . . . . . . Melee . | . . . . . . . . . . . . Ramming 3 | . . 3 . . . . . . . . . Kinetic 773 | 142 103 83 . . . . . . . . 445 Thermal 4493 | . . 565 17 . 864 . 323 956 67 612 1089 Explosive 1372 | . 472 302 598 . . . . . . . . Electromagnetic . | . . . . . . . . . . . . Impact . | . . . . . . . . . . . . Slashing . | . . . . . . . . . . . . Piercing . | . . . . . . . . . . . . Highest Corruption 9 | . . . . . . . . . . . 9 Average Corruption 9 | . . . . . . . . . . . 9 Corruption Purged . | . . . . . . . . . . . . Corruption Blocked . | . . . . . . . . . . . . Effects 7 | . . . . . . . . . . . 7 Message Errors 1 | . . . . . . . . . . . 1 Matter Fused 1 | . . . . . . . . . . . 1 Heat Flow Errors 1 | . . . . . . . . . . . 1 Data Loss (minor) 3 | . . . . . . . . . . . 3 Data Loss (major) 1 | . . . . . . . . . . . 1 Overload Shots . | . . . . . . . . . . . . Overflow Damage 103 | . . . 41 . . . . 60 . . 2 Projectiles 62 | . . . . . . . . 60 . . 2 Explosions 41 | . . . 41 . . . . . . . . Melee . | . . . . . . . . . . . . Knockbacks . | . . . . . . . . . . . . Impact . | . . . . . . . . . . . . Kinetic . | . . . . . . . . . . . . Secondary . | . . . . . . . . . . . . Self-Inflicted Damage 65 | . 46 19 . . . . . . . . . Shots 5 | . 4 1 . . . . . . . . . Rammed 1 | . . 1 . . . . . . . . . Targets Rammed 2 | . . 2 . . . . . . . . . Kicked . | . . . . . . . . . . . . Crushed 1 | . . 1 . . . . . . . . . Highest Temperature 471 | . 8 390 140 . . . . 432 80 13 471 Average Temperature 137 | . 4 90 68 . . . . 204 45 4 163 Received Heat Transfer 1699 | . 36 129 . . 54 . 9 189 12 36 1234 Effects 13 | . . . . . . . . 2 . . 11 Shutdowns 8 | . . . . . . . . 2 . . 6 Energy Bleed 1 | . . . . . . . . . . . 1 Short Circuit 3 | . . . . . . . . . . . 3 Damage (minor) 1 | . . . . . . . . . . . 1 Siege Activations . | . . . . . . . . . . . . Robots Corrupted . | . . . . . . . . . . . . Combat Hostiles . | . . . . . . . . . . . . Parts Fried . | . . . . . . . . . . . . Impact Corruptions . | . . . . . . . . . . . . Robots Melted 3 | . . 1 . . . . . . . . 2 Combat Hostiles 3 | . . 1 . . . . . . . . 2 Parts Melted 17 | . . . . . 1 . 1 4 . . 11 Heat Transferred 8773 | . . 1184 37 . 1110 . 407 1996 160 1360 2519 Parts Sabotaged . | . . . . . . . . . . . . Parts Stolen . | . . . . . . . . . . . . Parts Stripped . | . . . . . . . . . . . . Power Chain Reactions . | . . . . . . . . . . . . Alert | -11 -10 -9 -9 -9 -8 -8 -8 -8 -7 -7 -6 ------- Run | Yrd Mat Mat Min Exi Min Mat Sto Gar Fac DSF Fac Peak Influence 660 | 20 307 487 208 . 224 88 335 660 396 582 435 Initial 346 | . 13 129 175 . . 87 37 217 346 277 305 Average 282 | 9 172 353 199 . 138 87 179 452 385 404 263 Maximum Alert Level 2 | . 1 2 1 . 1 . 1 2 1 2 2 Low Security (%) 29 | 100 45 18 28 . 83 100 60 . . . 22 Level 1 50 | . 54 33 71 . 16 . 39 40 100 42 71 Level 2 20 | . . 48 . . . . . 59 . 57 5 Level 3 . | . . . . . . . . . . . . Level 4 . | . . . . . . . . . . . . Level 5 . | . . . . . . . . . . . . High Security . | . . . . . . . . . . . . Max Security . | . . . . . . . . . . . . Sterilizations 1 | . . . . . . . . . . 1 . Squads Dispatched 11 | . 1 3 . . . . 2 . . 2 3 Investigation 3 | . 1 2 . . . . . . . . . Extermination 1 | . . . . . . . . . . . 1 Reinforcement 6 | . . 1 . . . . 1 . . 2 2 Assault . | . . . . . . . . . . . . Garrison 1 | . . . . . . . 1 . . . . Intercept . | . . . . . . . . . . . . Searches Triggered . | . . . . . . . . . . . . Construction Impeded . | . . . . . . . . . . . . Haulers Reinforced . | . . . . . . . . . . . . Active Scanning Responses . | . . . . . . . . . . . . Cargo Convoy Interrupts . | . . . . . . . . . . . . Stealth | -11 -10 -9 -9 -9 -8 -8 -8 -8 -7 -7 -6 --------- Run | Yrd Mat Mat Min Exi Min Mat Sto Gar Fac DSF Fac Distress Signals 4 | . . 1 . . . . 2 . . . 1 Communications Jammed . | . . . . . . . . . . . . Distress Signals . | . . . . . . . . . . . . Times Spotted 145 | . 11 26 13 . 6 . 7 21 1 15 45 Peak Tracking Total 11 | . 5 6 10 . 3 . 3 9 1 5 11 Tactical Retreats 16 | . . 3 1 . . . . 2 . 2 8 Traps | -11 -10 -9 -9 -9 -8 -8 -8 -8 -7 -7 -6 ------- Run | Yrd Mat Mat Min Exi Min Mat Sto Gar Fac DSF Fac Traps Triggered 9 | . . 1 . . . . . 5 . 1 2 Indirectly . | . . . . . . . . . . . . Trap Hack Attempts . | . . . . . . . . . . . . Triggered . | . . . . . . . . . . . . Disarmed . | . . . . . . . . . . . . Reprogrammed . | . . . . . . . . . . . . Reused . | . . . . . . . . . . . . Traps Extracted . | . . . . . . . . . . . . Installed . | . . . . . . . . . . . . Triggered . | . . . . . . . . . . . . Machines | -11 -10 -9 -9 -9 -8 -8 -8 -8 -7 -7 -6 ---------- Run | Yrd Mat Mat Min Exi Min Mat Sto Gar Fac DSF Fac Machines Disabled 5 | . . 4 . . 1 . . . . . . Max in Single Turn 2 | . . 2 . . 1 . . . . . . Machines Repaired . | . . . . . . . . . . . . Machines Dismantled . | . . . . . . . . . . . . Machines Sabotaged . | . . . . . . . . . . . . Overloaded Fab Kills . | . . . . . . . . . . . . Hacking | -11 -10 -9 -9 -9 -8 -8 -8 -8 -7 -7 -6 --------- Run | Yrd Mat Mat Min Exi Min Mat Sto Gar Fac DSF Fac Machines Accessed 12 | . 3 4 . . . . 3 . 1 . 1 Terminals 10 | . 3 3 . . . . 2 . 1 . 1 Fabricators . | . . . . . . . . . . . . Repair Stations . | . . . . . . . . . . . . Recycling Units . | . . . . . . . . . . . . Scanalyzers 1 | . . 1 . . . . . . . . . Garrison Access 1 | . . . . . . . 1 . . . . Total Hacks 20 | . 5 8 . . . . 4 . 2 . 1 Successful 12 | . 4 3 . . . . 4 . 1 . . Failed 8 | . 1 5 . . . . . . 1 . 1 Catastrophic 2 | . . 2 . . . . . . . . . Database Lockouts . | . . . . . . . . . . . . Manual 12 | . 3 4 . 2 . . 2 . . . 1 Terminals 17 | . 5 6 . . . . 3 . 2 . 1 Fabricators . | . . . . . . . . . . . . Repair Stations . | . . . . . . . . . . . . Recycling Units . | . . . . . . . . . . . . Scanalyzers 2 | . . 2 . . . . . . . . . Garrison Access 1 | . . . . . . . 1 . . . . Terminal Hacks 6 | . 3 1 . . . . 1 . 1 . . Record 2 | . 2 . . . . . . . . . . Robot Analysis 2 | . 1 1 . . . . . . . . . Open DSF 1 | . . . . . . . . . 1 . . Alert Level 1 | . . . . . . . 1 . . . . Fabricator Hacks . | . . . . . . . . . . . . Repair Station Hacks . | . . . . . . . . . . . . Recycling Unit Hacks . | . . . . . . . . . . . . Scanalyzer 2 | . . 2 . . . . . . . . . Insert Component 1 | . . 1 . . . . . . . . . Analyze 1 | . . 1 . . . . . . . . . Garrison Access Hacks 1 | . . . . . . . 1 . . . . Unlock Access 1 | . . . . . . . 1 . . . . Unauthorized Hacks 3 | . 1 . . . . . 2 . . . . Terminals 3 | . 1 . . . . . 2 . . . . Botnet 3 | . 1 . . . . . 2 . . . . Fabricators . | . . . . . . . . . . . . Repair Stations . | . . . . . . . . . . . . Recycling Units . | . . . . . . . . . . . . Scanalyzers . | . . . . . . . . . . . . Garrison Access . | . . . . . . . . . . . . Data Cores Recovered . | . . . . . . . . . . . . Used . | . . . . . . . . . . . . Hacking Detections 8 | . 1 3 . . . . 2 . 1 . 1 Full Trace Events 3 | . 1 2 . . . . . . . . . Feedback Events . | . . . . . . . . . . . . Feedback Blocked . | . . . . . . . . . . . . Robot Schematics Acquired . | . . . . . . . . . . . . Robots Built . | . . . . . . . . . . . . Authchips . | . . . . . . . . . . . . Time . | . . . . . . . . . . . . Total Robot Build Rating . | . . . . . . . . . . . . Part Schematics Acquired 1 | . . 1 . . . . . . . . . Parts Built . | . . . . . . . . . . . . Authchips . | . . . . . . . . . . . . Time . | . . . . . . . . . . . . Total Part Build Rating . | . . . . . . . . . . . . Parts Repaired . | . . . . . . . . . . . . Time . | . . . . . . . . . . . . Parts Recycled . | . . . . . . . . . . . . Recycled Matter . | . . . . . . . . . . . . Retrieved Matter . | . . . . . . . . . . . . Retrieved Components . | . . . . . . . . . . . . Parts Scanalyzed 1 | . . 1 . . . . . . . . . Part Schematics Acquired 1 | . . 1 . . . . . . . . . Parts Damaged . | . . . . . . . . . . . . Bothacking | -11 -10 -9 -9 -9 -8 -8 -8 -8 -7 -7 -6 ------------ Run | Yrd Mat Mat Min Exi Min Mat Sto Gar Fac DSF Fac Used RIF Installer 1 | . . . . . . . . 1 . . . Robots Hacked . | . . . . . . . . . . . . Non-combat . | . . . . . . . . . . . . Combat . | . . . . . . . . . . . . Robot Hacks Applied . | . . . . . . . . . . . . Relay Couplers Released 3 | . . . . . . . . 3 . . . Programmers 3 | . . . . . . . . 3 . . . Fabnet Peak Effective % . | . . . . . . . . . . . . Robots Rewired . | . . . . . . . . . . . . Allies Hacked . | . . . . . . . . . . . . Hacks Repelled . | . . . . . . . . . . . . Allies | -11 -10 -9 -9 -9 -8 -8 -8 -8 -7 -7 -6 -------- Run | Yrd Mat Mat Min Exi Min Mat Sto Gar Fac DSF Fac Total Allies 10 | . . . . . . . 10 . . . . Largest Group 10 | . . . . . . . 10 5 . . . Highest-Rated Group 173 | . . . . . . . 173 93 . . . Highest-Rated Ally 29 | . . . . . . . 29 29 . . . Total Orders . | . . . . . . . . . . . . Ally Attacks 95 | . . . . . . . 54 41 . . . Total Damage 1392 | . . . . . . . 797 595 . . . Kills 14 | . . . . . . . 7 7 . . . Allies Corrupted . | . . . . . . . . . . . . Allies Melted . | . . . . . . . . . . . . Intel | -11 -10 -9 -9 -9 -8 -8 -8 -8 -7 -7 -6 ------- Run | Yrd Mat Mat Min Exi Min Mat Sto Gar Fac DSF Fac Robot Analysis Total 2 | . 1 1 . . . . . . . . . Derelict Logs Recovered . | . . . . . . . . . . . . Drone Launches . | . . . . . . . . . . . . Drone Recoveries . | . . . . . . . . . . . . Exploration | -11 -10 -9 -9 -9 -8 -8 -8 -8 -7 -7 -6 ------------- Run | Yrd Mat Mat Min Exi Min Mat Sto Gar Fac DSF Fac Turns Passed 5300 | 272 313 698 183 791 262 72 238 668 338 228 1237 Spaces Moved 3485 | 161 170 338 70 602 185 54 180 433 196 85 1011 Core 201 | 30 . . . . . . . . . . 171 Treads 592 | 131 170 291 . . . . . . . . . Legs 2233 | . . 47 70 602 185 54 180 433 196 85 381 Wheels . | . . . . . . . . . . . . Hover . | . . . . . . . . . . . . Flight 459 | . . . . . . . . . . . 459 Fastest Speed 35 | 50 160 130 130 130 130 130 130 125 124 192 35 Average Speed 128 | 139 160 156 130 130 130 130 130 127 166 194 99 Slowest Speed 1350 | 160 160 200 130 130 130 130 130 130 194 195 1350 Overloaded Moves . | . . . . . . . . . . . . Propulsion Burnouts . | . . . . . . . . . . . . Robots Hopped 5 | . . . . . . . . . . . 5 Cave-ins Triggered . | . . . . . . . . . . . . Exploration Rate (%) 32 | 7 39 30 18 90 46 6 28 42 5 47 30 Regions Visited 11 Branch Regions 4 Pre-discovered Areas . | . . . . . . . . . . . . Known Exits Taken 2 | . . . . . . . 1 . 1 . . Unknown Exits Taken 7 | 1 1 1 1 1 1 1 . . . . . Scrap Searched . | . . . . . . . . . . . . Spaces Dug . | . . . . . . . . . . . . Terrain Destroyed 128 | . 40 43 37 . 4 1 3 . . . . Melee . | . . . . . . . . . . . . Projectile 8 | . . . . . 4 1 3 . . . . AOE 120 | . 40 43 37 . . . . . . . . Terrain Rammed . | . . . . . . . . . . . . Walls Destroyed . | . . . . . . . . . . . . Machines Disabled . | . . . . . . . . . . . . Actions | -11 -10 -9 -9 -9 -8 -8 -8 -8 -7 -7 -6 --------- Run | Yrd Mat Mat Min Exi Min Mat Sto Gar Fac DSF Fac Total 4053 | 192 190 434 153 611 206 56 185 530 204 132 1160 Wait 132 | . . 3 78 . 17 . . 15 . 5 14 Move 3463 | 160 169 337 69 601 184 53 179 431 195 84 1001 Hop 5 | . . . . . . . . . . . 5 Pick Up 86 | 13 4 21 1 4 1 1 2 14 2 13 10 Fast Attach 1 | . . . . . . . . . . . 1 Attach 52 | 7 1 9 . 3 . 2 . 6 3 2 19 Detach 13 | 1 . 1 . . . . . 2 . . 9 Swap 32 | . 1 8 1 1 3 . 1 7 2 4 4 Drop 39 | 1 1 12 . 2 1 . 2 12 . 5 3 Fire 194 | 10 14 41 4 . . . . 27 2 17 79 Melee . | . . . . . . . . . . . . Ram . | . . . . . . . . . . . . Kick . | . . . . . . . . . . . . Crush 2 | . . 2 . . . . . . . . . Escape Stasis 22 | . . . . . . . . 5 . 2 15 Rewire 12 | . . . . . . . 1 11 . . . Trap . | . . . . . . . . . . . . Miscellaneous . | . . . . . . . . . . . . Route ------- -11/Scrapyard -10/Materials (discovered 2 exits: *Mat / [*Min]) -9/Materials -9/Mines -9/Exiles -8/Mines -8/Materials (discovered 2 exits: *Sto x2) -8/Storage (discovered 2 exits: [*Rec] / Gar) -8/Garrison -7/Factory -7/DSF -6/Factory History --------- Turn | Location | Event 15 | -11/Scrapyard | Discovered new exit (range 14) 273 | -11/Scrapyard | Entered Materials 313 | -10/Materials | Build established: Mutant 439 | -10/Materials | Discovered new exit (range 13) 535 | -10/Materials | Discovered new exit (range 14) 586 | -10/Materials | Entered another Materials area 586 | -9/Materials | Evolved 2 slots: Propulsion x2 1180 | -9/Materials | Discovered new exit (range 11) 1284 | -9/Materials | Entered Mines 1291 | -9/Mines | Received a Rocket Launcher from a helpful Derelict 1310 | -9/Mines | Assembled infested the area 1344 | -9/Mines | Deemed a non-threat by the Exiles lab entrance 1345 | -9/Mines | Discovered new exit (range 5) 1347 | -9/Mines | Destroyed 8 combat bots 1467 | -9/Mines | Entered Exiles 1515 | -9/Exiles | Met 8R-AWN 1557 | -9/Exiles | Met EX-HEX 1628 | -9/Exiles | Met EX-BIN 1662 | -9/Exiles | Aligned with FarCom system 1663 | -9/Exiles | Given EX-Vault access code 1705 | -9/Exiles | Opened EX-Vault 1711 | -9/Exiles | Found Prototype Energy Gun 1715 | -9/Exiles | Found Prototype Energy Cannon 1725 | -9/Exiles | Identified AWS/Thermal 1726 | -9/Exiles | Found Prototype Device 1727 | -9/Exiles | Identified Skeleton Box 1778 | -9/Exiles | Warned to stay clear of 0b10 Research branches 1828 | -9/Exiles | Met EX-DEC 1907 | -9/Exiles | Visited The Gauntlet 2241 | -9/Exiles | Discovered new exit (range 10) 2258 | -9/Exiles | Stole three prototypes: Skeleton Box, AWS/Thermal, Gui. Plasma Cannon 2258 | -9/Exiles | Entered Mines 2513 | -8/Mines | Discovered new exit (range 6) 2520 | -8/Mines | Entered Materials 2520 | -8/Materials | Evolved 2 slots: Propulsion x1, Utility x1 2522 | -8/Materials | Discovered new exit (range 7) 2545 | -8/Materials | Discovered new exit (range 13) 2592 | -8/Materials | Entered Storage 2618 | -8/Storage | Assisted by bots powering up and referring to "LRC-V3" 2790 | -8/Storage | Garrison activated, responded to threat 2796 | -8/Storage | Remotely autohacked Sealed Blast Doors 2797 | -8/Storage | Discovered new exit (range 8) 2828 | -8/Storage | Identified exit to Garrison 2830 | -8/Storage | Entered Garrison 2830 | -8/Garrison | Accompanied by 5 allies 2852 | -8/Garrison | Triggered checkpoint 2859 | -8/Garrison | Identified Gui. Plasma Cannon 2916 | -8/Garrison | Triggered checkpoint 2920 | -8/Garrison | Build established: Commander-Mutant 3052 | -8/Garrison | Triggered checkpoint 3064 | -8/Garrison | Triggered checkpoint 3106 | -8/Garrison | Lost 4 allies 3362 | -8/Garrison | Installed Relay Interface Framework 3376 | -8/Garrison | Discovered new exit (range 14) 3380 | -8/Garrison | Triggered checkpoint 3445 | -8/Garrison | Build established: Scavenger-Mutant 3498 | -8/Garrison | Entered Factory 3498 | -7/Factory | Evolved 2 slots: Power x1, Utility x1 3500 | -7/Factory | FarCom data flow suspended 3834 | -7/Factory | Identified exit to DSF 3836 | -7/Factory | Entered DSF 3866 | -7/DSF | Additional patrols routed to DSF 3893 | -7/DSF | Discovered new exit (range 16) 4054 | -7/DSF | Sterilization system engaged 4064 | -7/DSF | Entered Factory 4064 | -6/Factory | Evolved 2 slots: Utility x2 5016 | -6/Factory | Core integrity fell below 50% 5038 | -6/Factory | Lost 12 parts (3p6n3u) 5228 | -6/Factory | Core integrity fell below 20% 5283 | -6/Factory | Build established: Mutant 5301 | -6/Factory | Destroyed by S-27 Virus with Autogun Last Messages --------------- 05246_ Field strength at 88. 05247_ Field strength at 82. 05248_ Field strength at 76. 05249_ Field strength at 70. 05250_ Field strength at 64. 05251_ System corrupted: Matter fused (-8). 05251_ Field strength at 58. 05252_ Field strength at 52. 05253_ Field strength at 46. 05254_ Field strength at 40. 05255_ Field strength at 34. 05256_ Field strength at 28. 05257_ Field strength at 22. 05258_ Field strength at 16. 05259_ Field strength at 10. 05260_ Field strength at 4. 05261_ Stasis field depleted. 05262_ U-05 Engineer lays Concrete. 05283_ System corrupted: Component data lost. 05296_ Acquired Drone Bay. Map ----- +----------------------------------------------------+ | ?????# # """ """ "#????????????????????????????? | | ?????# # """ """ #????????????????????????????? | | ###### # """ """ #????????????????????????????? | | + #????????????????????????????? | | ##### #????????????????????????????? | | #??#???###########????????????????????????????? | | #? ???????????????????????????????????????????? | | # ? ???????????????????????????????????????? | | # #????????????????????????????????????? | | + #????????????????????????????????????? | | " # *!] #????????????????????????????????????? | | " #?? *! #????????????????????????????????????? | | " #????*] #????????????????????????????????????? | | " #?????? #????????????????????????????????????? | | #????????#? ????????????????????????????? | | #?????????# #???????????????????????????? | | #?????????# #???????????????????????????? | | ########??# ##??????????????????????????? | | #??# ###########????????????????? | | #??# # ! #????????????????? | | #??# # #????????????????? | | #??# #""" """ ######???????????? | | #??# #"R """ ## ?#?????????? | | #### #""" """ ## #?????????? | | # "" ## """ #?????????? | | # s@s ## """ #?????????? | | ###/######## """ #?????????? | | ^ # ###### #?????????? | | # s # """ #?????????? | | + """ #?????????? | | ##### ######### ### # """ #?????????? | | #???# #???????# #?# ! #### # #?????????? | | +######+#???????+ #?### ###??# # #?????????? | | #???????### #???# #????# # #?????????? | | #?????????# #???# #????#+#######?????????? | | #?????????# #???# #??????????????????????? | | #?????????# #???# #??????????????????????? | | #########?????????# #???# #??????????????????????? | | ???????????????????+#???#+#??????????????????????? | | ???????????????????????? ??????????????????????? | | ????????????????????????"" ??????????????????????? | | ??????????????????????? """ ?????????????????????? | | ??????????????????????? R" ?????????????????????? | | ??????????????????????" """ #????????????????????? | | ??????????????????????" #????????????????????? | | ?????????????????????"" ? #????????????????????? | | ?????????????????????? ?? #????????????????????? | | ??????????????????????#?????#????????????????????? | | ?????????????????????????????????????????????????? | | ?????????????????????????????????????????????????? | +----------------------------------------------------+ Best States ------------- Heat Dissipation 56 Energy Generation 28 Energy Capacity 300 Matter Stores 493 Matter Capacity 500 Sight Range 16 Terrain Scan Density 10 Armor Coverage 600 Evasion (%) 63 Core Analysis 6 Recoil Reduction 4 Kinecelleration 30 Item Schematics ----------------- Seismic Detector | -9/Materials | Scanalyzed Robot Schematics ------------------ None Fabricated ------------ Nothing Alien Tech Used ----------------- None Achievements -------------- It's Just You Slippery One Challenges ------------ None Game ------ Seed VisualSupersonicAirjet Manual? 0 Play Time 01:11:39 Cumulative 6.4 hours Start 2024.04.07 @ 15:33:43 End 2024.04.07 @ 16:44:47 Sessions 1 Manual Loads 0 Difficulty Rogue Special Mode None Game No. 17 Rogue 17 Adventurer 0 Explorer 0 Win Type - Total 0 Types 0/0/0/0/0/0/0/0/0 Lore% 14 Gallery% 12 Achievement% 15 Wizard Run 0 Options --------- Layout 1 ASCII 1 Keyboard 0 Movement Arrows Keybinds 0 Fullscreen 1 Font 24/Smallcaps Map View 50x35 Zoom Use 0% Tactical HUD 1 Map Filters NONE Filters NONE Steam 1 RUN: a923f28d-8cd4-4620-9d04-752ad4224cbf